fUSD/lending_fUSD_20240501
["ID","MTS","AMOUNT","RATE_DAILY","PERIOD"]
[325203181,1714580680308,872.33307435,0.00011699,2]
[325203183,1714580685739,200.0,0.00011657,2]
[325203184,1714580692670,257.58973417,0.00011616,2]
[325203186,1714580702949,155.0,0.00011699,2]
[325203187,1714580704707,524.39078621,0.00011699,2]
[325203188,1714580707908,257.58973417,0.00011616,2]
[325203190,1714580725907,198.4847496,0.00011616,2]
[325203191,1714580725930,58.8661253,0.00011616,2]
[325203195,1714580795957,5426.97764473,0.00011616,2]
[325203200,1714580906864,153.0,0.00011598,2]
[325203201,1714580907100,153.0,0.00011633,2]
[325203202,1714580907311,153.0,0.00011669,2]
[325203203,1714580935572,249.55,0.00011516,2]
[325203204,1714580951062,472.03818118,0.00011597,2]
[325203205,1714580956077,472.03818118,0.00011598,2]
[325203206,1714580959810,170.57,9.209e-05,2]
[325203207,1714580961076,472.03818118,0.00011598,2]
[325203213,1714581005769,150.0,0.00011696,2]
[325203221,1714581007213,150.0,0.00011696,2]
[325203233,1714581031919,-155.0,0.00011697,2]
[325203234,1714581031928,-102.21,0.00011697,2]
[325203235,1714581032059,-9240.0,0.00011697,2]
[325203236,1714581032070,-284.1080006,0.00011697,2]
[325203237,1714581032082,-9829.05267004,0.00011697,2]
[325203238,1714581032091,-1710.4163,0.00011698,2]
[325203239,1714581032100,-164.65,0.000117,2]
[325203240,1714581032109,-153.0,0.00011704,2]
[325203241,1714581032118,-153.0,0.0001174,2]
[325203242,1714581032127,-153.0,0.00011775,2]
[325203243,1714581032136,-153.0,0.00011811,2]
[325203244,1714581032145,-153.0,0.00011847,2]
[325203245,1714581032154,-153.0,0.00011882,2]
[325203246,1714581032164,-153.0,0.00011918,2]
[325203247,1714581032173,-153.0,0.00011953,2]
[325203248,1714581032183,-153.0,0.00011989,2]
[325203249,1714581032192,-153.0,0.00012024,2]
[325203250,1714581032201,-153.0,0.0001206,2]
[325203251,1714581032211,-732.57603476,0.00012091,2]
[325203252,1714581032220,-153.0,0.00012096,2]
[325203253,1714581032229,-400.0,0.00012116,2]
[325203254,1714581032239,-153.0,0.00012131,2]
[325203256,1714581032247,-153.0,0.00012167,2]
[325203258,1714581032256,-153.0,0.00012202,2]
[325203260,1714581032265,-2125.33,0.00012203,2]
[325203262,1714581032274,-1268.52,0.00012203,2]
[325203264,1714581032284,-1573.65,0.00012203,2]
[325203265,1714581032293,-1208.29123756,0.00012207,2]
[325203266,1714581032302,-1000.0,0.00012603,2]
[325203267,1714581032311,-150.0,0.0001283,2]
[325203268,1714581032320,-150.0,0.00012862,2]
[325203269,1714581032329,-155.49081521,0.00012887,2]
[325203270,1714581032338,-255.30640915,0.00012887,2]
[325203271,1714581032347,-787.64873451,0.00012887,2]
[325203272,1714581032355,-262.44920818,0.00012887,2]
[325203273,1714581032364,-4214.18687315,0.00012887,2]
[325203274,1714581032406,-31063.22411585,0.00012887,2]
[325203275,1714581032416,-621.85052056,0.00012887,2]
[325203276,1714581032425,-186.75923088,0.00012887,2]
[325203277,1714581032436,-155.0,0.00012887,2]
[325203278,1714581032445,-329.66543694,0.00012887,2]
[325203279,1714581032455,-551.81544025,0.00012887,2]
[325203280,1714581032465,-155.57580743,0.00012888,2]
[325203281,1714581032474,-28000.0,0.00012889,2]
[325203282,1714581032483,-370.0423,0.00012889,2]
[325203283,1714581032494,-263.2518,0.00012889,2]
[325203284,1714581032503,-40034.4948,0.00012889,2]
[325203285,1714581032512,-10375.8293,0.00012889,2]
[325203286,1714581032522,-4238.2775,0.00012889,2]
[325203287,1714581032531,-164.12115548,0.00012891,2]
[325203288,1714581032540,-201.41139642,0.00012891,2]
[325203289,1714581032549,-200.0,0.00012896,2]
[325203290,1714581032559,-299.99,0.00012896,2]
[325203291,1714581032573,-179.34240057,0.00012899,2]
[325203292,1714581032582,-172.55704512,0.000129,2]
[325203293,1714581032591,-1000.0,0.000129,2]
[325203294,1714581032601,-10000.0,0.000129,2]
[325203295,1714581032611,-201.41139642,0.000129,2]
[325203296,1714581032621,-949.42174598,0.000129,2]
[325203297,1714581032630,-649.43817822,0.000129,2]
[325203298,1714581032639,-217.17006799,0.000129,2]
[325203299,1714581032648,-499.45562817,0.00012985,2]
[325203300,1714581032658,-197.99986453,0.00012986,2]
[325203301,1714581032668,-2423.29916445,0.00012987,2]
[325203302,1714581032677,-1209.57921594,0.00012987,2]
[325203303,1714581032689,-1947.51945692,0.00012987,2]
[325203304,1714581032699,-92337.66308378,0.00012987,3]
[325203305,1714581032709,-24454.11412729,0.00012987,3]
[325203306,1714581032719,-3634.40571362,0.00012988,2]
[325203307,1714581032729,-155.0,0.00012988,2]
[325203308,1714581032738,-185.94479018,0.00012988,2]
[325203309,1714581032748,-155.16802401,0.00012988,2]
[325203310,1714581032758,-363.35615839,0.00012988,2]
[325203311,1714581032768,-1500.0,0.00012988,2]
[325203312,1714581032778,-5297.02822393,0.00012988,2]
[325203313,1714581032787,-408.57453561,0.00012989,2]
[325203314,1714581032797,-781.35828446,0.00012989,2]
[325203315,1714581032806,-192.81318554,0.00012989,2]
[325203316,1714581032815,-155.0,0.00012989,2]
[325203317,1714581032825,-241.48315687,0.00012989,2]
[325203318,1714581032834,-160.91122999,0.00012989,2]
[325203319,1714581032844,-302.83054698,0.00012989,2]
[325203320,1714581032853,-2593.20880752,0.00012989,2]
[325203321,1714581032863,-157.34694959,0.00012989,2]
[325203322,1714581032872,-155.16353772,0.00012989,2]
[325203323,1714581032881,-236.8238938,0.00012989,2]
[325203324,1714581032890,-155.0,0.00012989,2]
[325203325,1714581032900,-339.20676129,0.00012989,2]
[325203326,1714581032909,-213.89673121,0.00012989,2]
[325203327,1714581032918,-1064.24123917,0.00012989,2]
[325203328,1714581032927,-416.01691734,0.00012989,2]
[325203329,1714581032938,-266.67469551,0.00012989,2]
[325203330,1714581032948,-325.81505107,0.00012989,2]
[325203331,1714581032958,-155.09566948,0.00012989,2]
[325203332,1714581032967,-2124.74218484,0.00012989,2]
[325203333,1714581032977,-298906.40288035,0.00012989,2]
[325203334,1714581032986,-1500.0,0.00012989,2]
[325203335,1714581032996,-27192.5223484,0.00012989,2]
[325203336,1714581033005,-12639.6347505,0.00012989,2]
[325203337,1714581033015,-4711.9196436,0.00012989,2]
[325203338,1714581033024,-2741.8118535,0.00012989,2]
[325203339,1714581033033,-2135.5466734,0.00012989,2]
[325203340,1714581033043,-1063.4317384,0.00012989,2]
[325203341,1714581033052,-250000.0,0.0001299,2]
[325203342,1714581033061,-1070.0,0.00012991,2]
[325203343,1714581033070,-28783.4282868,0.00012991,2]
[325203344,1714581033079,-30374.3342252,0.00012991,2]
[325203345,1714581033088,-31965.2401636,0.00012991,2]
[325203346,1714581033097,-33556.146102,0.00012991,2]
[325203347,1714581033106,-19889.59993042,0.00012991,2]
[325203348,1714581033118,-6566.03609594,0.00012991,2]
[325203349,1714581033129,-7289.9674728,0.00012991,2]
[325203350,1714581033141,-1401.44854124,0.00012991,2]
[325203351,1714581033150,-13903.5982255,0.00012991,2]
[325203352,1714581033160,-15167.5617006,0.00012991,2]
[325203353,1714581033169,-1267.88653089,0.00012991,2]
[325203354,1714581033183,-15163.63864471,0.00012991,2]
[325203355,1714581033193,-7551.23203309,0.00012991,2]
[325203356,1714581033204,-259.8138375,0.00012991,2]
[325203361,1714581037915,-600.5,0.00012991,2]
[325203363,1714581037936,-1237.47238105,0.00012991,2]
[325203365,1714581037948,-1086.56026731,0.00012991,2]
[325203369,1714581038017,-6959.91013175,0.00012991,2]
[325203370,1714581038027,-9763.64287992,0.00012991,2]
[325203372,1714581038039,-2602.32365531,0.00012991,2]
[325203375,1714581038051,-529.12011047,0.00012991,2]
[325203377,1714581038063,-300.32,0.00012991,2]
[325203379,1714581038075,-2485.11247109,0.00012991,2]
[325203391,1714581038174,-3278.93300891,0.00012991,2]
[325203393,1714581038185,-5183.1116079,0.00012991,2]
[325203395,1714581038195,-5654.3035723,0.00012991,2]
[325203397,1714581038205,-6125.4955366,0.00012991,2]
[325203399,1714581038215,-6596.687501,0.00012991,2]
[325203401,1714581038225,-7067.8794654,0.00012991,2]
[325203402,1714581038235,-3030.5402973,0.00012991,2]
[325203403,1714581038245,-3319.2687411,0.00012991,2]
[325203404,1714581038255,-3607.9971848,0.00012991,2]
[325203405,1714581038264,-3896.7256286,0.00012991,2]
[325203406,1714581038274,-4185.4540724,0.00012991,2]
[325203407,1714581038284,-2360.431932,0.00012991,2]
[325203408,1714581038294,-2585.3171906,0.00012991,2]
[325203409,1714581038303,-2810.2024491,0.00012991,2]
[325203410,1714581038313,-3035.0877077,0.00012991,2]
[325203411,1714581038322,-3259.9729663,0.00012991,2]
[325203412,1714581038332,-1211.1831273,0.00012991,2]
[325203414,1714581038341,-1358.9345162,0.00012991,2]
[325203416,1714581038351,-1506.6859052,0.00012991,2]
[325203418,1714581038360,-1654.4372941,0.00012991,2]
[325203420,1714581038370,-1802.188683,0.00012991,2]
[325203422,1714581038379,-1265.99709831,0.00012998,2]
[325203424,1714581038389,-250.1968196,0.00012999,2]
[325203426,1714581038399,-1909.57121898,0.00012999,2]
[325203428,1714581038409,-42144.6743364,0.00013,2]
[325203430,1714581038422,-9397.71332057,0.00013,2]
[325203597,1714581040304,-196.22365687,0.000129,2]
[325203598,1714581040313,-699.55799313,0.00013,2]
[325203599,1714581040393,-411.8201212,0.00013,2]
[325203600,1714581040404,-498.56614847,0.00013,2]
[325203601,1714581040415,-1949.89696304,0.00013,2]
[325203602,1714581040426,-360.68756511,0.00013,2]
[325203603,1714581040441,-16947.33383585,0.00013,2]
[325203608,1714581040798,-372.48939421,0.00013,2]
[325203609,1714581040809,-2012.60093909,0.00013,2]
[325203610,1714581040820,-3557.86121742,0.00013,2]
[325203611,1714581040832,-6757.96750055,0.00013,2]
[325203612,1714581040844,-32793.82785512,0.00013,2]
[325203613,1714581040856,-1617.592005,0.00013,2]
[325203614,1714581040867,-1363.68834929,0.00013,2]
[325203615,1714581040877,-455.64,0.00013,2]
[325203662,1714581043005,-1383.80611967,0.00013,2]
[325203668,1714581044023,-328889.87841143,0.00013,2]
[325203673,1714581046013,-155.0,0.00012999,2]
[325203674,1714581046027,-2489.31329097,0.00012999,2]
[325203675,1714581046042,-8618.13259938,0.00013,2]
[325203676,1714581046058,-2162.73219915,0.00013,2]
[325203677,1714581046095,-14843.9461843,0.00013,2]
[325203678,1714581046109,-1969.45506238,0.00013,3]
[325203679,1714581046124,-30.54493762,0.00013,3]
[325203680,1714581046138,-725.21503118,0.00013,3]
[325203681,1714581046247,-1003.78496882,0.00013,3]
[325203682,1714581046261,-1748.77005859,0.00013,2]
[325203683,1714581046275,-302.38883711,0.00013,2]
[325203684,1714581046291,-8.90267678,0.00013,2]
[325203685,1714581046304,-115410.49311316,0.00013,2]
[325203686,1714581046320,-47458.45138052,0.00013,2]
[325203687,1714581046337,-782.08423587,0.00013,2]
[325203688,1714581046352,-31471.5,0.00013,2]
[325203689,1714581046369,-967230.125745,0.00013,2]
[325203690,1714581046385,-459.4508895,0.00013,2]
[325203691,1714581046402,-327.0675,0.00013,2]
[325203692,1714581046419,-309.165,0.00013,2]
[325203693,1714581046435,-429.395,0.00013,2]
[325203694,1714581046452,-324.36371,0.00013,2]
[325203695,1714581046469,-777.31,0.00013,2]
[325203696,1714581046502,-584.74,0.00013,2]
[325203697,1714581046518,-425.09584732,0.00013,2]
[325203698,1714581066379,1263.01,0.00011516,2]
[325203703,1714581274715,200.0,0.00011511,2]
[325203705,1714581344694,200.0,0.00011511,2]
[325203706,1714581519631,468.75,0.00011511,2]
[325203707,1714581533351,2708.7,0.00011511,2]
[325203708,1714581691360,481.55,0.00011511,2]
[325203710,1714581810663,397.000051,0.00011669,2]
[325203712,1714581891181,150.0,0.00011511,2]
[325203721,1714581999302,157.89,0.00011598,2]
[325203737,1714582232471,-155.0,0.00011708,2]
[325203738,1714582232480,-787.80501962,0.00011709,2]
[325203739,1714582232490,-262.50031693,0.0001171,2]
[325203740,1714582232500,-1787.63689034,0.00011713,2]
[325203741,1714582232570,-6920.50908841,0.00011713,2]
[325203742,1714582232580,-1785.29637158,0.00011715,2]
[325203743,1714582232590,-360.0,0.00011844,2]
[325203744,1714582232599,-200.0,0.00011844,2]
[325203745,1714582232609,-500.0,0.00011845,2]
[325203746,1714582232618,-1000.0,0.00011852,2]
[325203747,1714582232629,-150.0,0.00012603,2]
[325203749,1714582232640,-150.0,0.0001263,2]
[325203751,1714582232648,-158.53,0.0001263,2]
[325203752,1714582232658,-499.99,0.0001263,2]
[325203754,1714582232667,-999.99,0.0001263,2]
[325203757,1714582232676,-300.7,0.00012634,2]
[325203760,1714582232685,-521.81,0.00012674,2]
[325203763,1714582232694,-156.54,0.00012729,2]
[325203766,1714582232938,-156.54,0.00012733,2]
[325203767,1714582232949,-156.54,0.00012737,2]
[325203768,1714582232960,-156.54,0.00012741,2]
[325203770,1714582232970,-156.54,0.00012745,2]
[325203771,1714582232979,-156.54,0.00012749,2]
[325203773,1714582232988,-156.54,0.00012753,2]
[325203774,1714582232998,-156.54,0.00012756,2]
[325203776,1714582233008,-156.54,0.0001276,2]
[325203778,1714582233017,-156.54,0.00012764,2]
[325203780,1714582233026,-156.54,0.00012768,2]
[325203782,1714582233035,-156.54,0.00012772,2]
[325203784,1714582233044,-156.54,0.00012776,2]
[325203786,1714582233054,-156.54,0.0001278,2]
[325203788,1714582233064,-156.54,0.00012784,2]
[325203790,1714582233073,-156.54,0.00012788,2]
[325203792,1714582233082,-156.54,0.00012792,2]
[325203794,1714582233092,-150.0,0.00012838,2]
[325203796,1714582233101,-28000.0,0.00012887,2]
[325203798,1714582233110,-200.0,0.00012895,2]
[325203800,1714582233119,-1000.0,0.00012895,2]
[325203802,1714582233129,-200.0,0.00012895,2]
[325203804,1714582233138,-500.0,0.00012895,2]
[325203805,1714582233147,-200.0,0.00012895,2]
[325203806,1714582233156,-200.0,0.00012896,2]
[325203807,1714582233166,-1000.0,0.00012896,2]
[325203808,1714582233175,-200.0,0.00012896,2]
[325203809,1714582233184,-200.0,0.00012896,2]
[325203810,1714582233194,-200.0,0.00012896,2]
[325203811,1714582233204,-200.0,0.00012896,2]
[325203812,1714582233213,-200.0,0.00012896,2]
[325203813,1714582233223,-200.0,0.00012896,2]
[325203814,1714582233232,-200.0,0.00012896,2]
[325203815,1714582233242,-1000.0,0.00012896,2]
[325203816,1714582233251,-1000.0,0.00012896,2]
[325203817,1714582233260,-200.0,0.00012896,2]
[325203818,1714582233270,-200.0,0.00012896,2]
[325203819,1714582233279,-500.0,0.00012896,2]
[325203820,1714582233289,-500.0,0.00012896,2]
[325203821,1714582233298,-16952.35454001,0.000129,2]
[325203822,1714582233310,-47244.76211597,0.000129,2]
[325203823,1714582233320,-172.69804773,0.000129,2]
[325203824,1714582233329,-3000.0,0.000129,2]
[325203825,1714582233338,-217.17006798,0.000129,2]
[325203826,1714582233347,-432.95878548,0.000129,2]
[325203827,1714582233357,-5975.41098278,0.000129,2]
[325203828,1714582233404,-285.761,0.000129,2]
[325203829,1714582233467,-2009.84515001,0.000129,2]
[325203830,1714582233483,-2750.0,0.000129,2]
[325203841,1714582238318,-4242.16526721,0.000129,2]
[325203842,1714582238327,-196.22365687,0.000129,2]
[325203843,1714582238336,-3000.0,0.0001297,2]
[325203844,1714582238346,-4584.3685979,0.00012987,2]
[325203845,1714582238355,-190.0,0.0001299,2]
[325203846,1714582238364,-685.70451048,0.00012998,2]
[325203847,1714582238374,-706.66913894,0.00012998,2]
[325203848,1714582238383,-157.55918025,0.00012998,2]
[325203849,1714582238392,-1265.99709831,0.00012998,2]
[325203850,1714582238402,-255.48323707,0.00012998,2]
[325203851,1714582238411,-1777.33405598,0.00012998,2]
[325203852,1714582238421,-325.8442159,0.00012998,2]
[325203853,1714582238430,-5466.96294396,0.00012998,2]
[325203854,1714582238439,-155.0,0.00012998,2]
[325203855,1714582238448,-305.39391058,0.00012998,2]
[325203856,1714582238458,-4970.48340786,0.00012999,2]
[325203857,1714582238468,-250.1968196,0.00012999,2]
[325203858,1714582238477,-3819.14243796,0.00012999,2]
[325203859,1714582238487,-1000.0,0.00012999,2]
[325203860,1714582238497,-1000.3768,0.00012999,2]
[325203861,1714582238506,-915.0,0.00013,2]
[325203862,1714582238516,-10300.53419442,0.00013,2]
[325203863,1714582238555,-53088.78257424,0.00013,2]
[325203864,1714582238567,-102677.55348015,0.00013,2]
[325203865,1714582238579,-4441.11902122,0.00013,2]
[325203866,1714582238660,-10910.12619364,0.00013,2]
[325203867,1714582238671,-346.49127393,0.00013,2]
[325203881,1714582240413,-632.94783066,0.000129,2]
[325203882,1714582240422,-306838.90633023,0.00013,2]
[325203883,1714582240435,-310.41470105,0.00013,2]
[325203884,1714582240451,-5426.97764473,0.00013,2]
[325203885,1714582240469,-287.255,0.00013,2]
[325203886,1714582242859,-307.34949982,0.00013,2]
[325203887,1714582242871,-291.44554907,0.00013,2]
[325204022,1714582244432,-533.34082628,0.00013,2]
[325204024,1714582244443,-15034.33035745,0.00013,2]
[325204028,1714582244477,-179.34240057,0.000129,2]
[325204030,1714582244486,-1056.85759943,0.00013,2]
[325204032,1714582244498,-620.28510931,0.00013,2]
[325204034,1714582244509,-397.00005046,0.00013,2]
[325204035,1714582244520,-377.10855223,0.00013,2]
[325204036,1714582244535,-5429.12216,0.00013,2]
[325204037,1714582244551,-1308.00000413,0.00013,2]
[325204062,1714582246383,-226.34579406,0.00012999,2]
[325204064,1714582246394,-2366.2467266,0.00012999,2]
[325204066,1714582246403,-7442.78063595,0.00013,2]
[325204070,1714582246426,-348.59969661,0.00013,2]
[325204073,1714582246451,-264.208,0.00013,2]
[325204112,1714582246865,-28549.99999999,0.00013,2]
[325204113,1714582246881,-1130.02004929,0.00013,2]
[325204114,1714582246907,-335.60142443,0.00013,2]
[325204116,1714582264900,150.0,0.00010993,2]
[325204118,1714582389012,9529.59999999,0.00011,2]
[325204120,1714582479121,2620.7,0.00011696,2]
[325204122,1714582725312,192.0,0.00011696,2]
[325204134,1714583431565,-155.0,0.0001208,2]
[325204135,1714583431576,-200.0,0.00012081,2]
[325204136,1714583431585,-200.0,0.00012097,2]
[325204137,1714583431595,-155.0,0.00012099,2]
[325204138,1714583431604,-531.95135298,0.000121,2]
[325204139,1714583431617,-211.04864702,0.000121,2]
[325204140,1714583431626,-200.0,0.00012102,2]
[325204141,1714583431637,-151.45098438,0.00012102,2]
[325204142,1714583431654,-554.58560878,0.00012102,2]
[325204143,1714583431665,-692.97104432,0.00012102,2]
[325204144,1714583431677,-3390.68391833,0.00012102,2]
[325204145,1714583431686,-5668.21876212,0.00012141,2]
[325204146,1714583431712,-1135.31023447,0.00012141,2]
[325204147,1714583431731,-469.0,0.00012141,2]
[325204148,1714583431824,-854.8607206,0.00012141,2]
[325204149,1714583431835,-1205.85470828,0.00012141,2]
[325204150,1714583431847,-1661.1859856,0.00012141,2]
[325204189,1714583437731,-8785.11958893,0.00012141,2]
[325204190,1714583437740,-633.78355333,0.00012146,2]
[325204191,1714583437750,-800.0,0.00012148,2]
[325204192,1714583437759,-166.09,0.00012229,2]
[325204193,1714583437769,-180.0,0.00012365,2]
[325204194,1714583437779,-1000.0,0.000126,2]
[325204195,1714583437788,-1000.0,0.000127,2]
[325204196,1714583437799,-1000.0,0.000127,2]
[325204197,1714583437809,-1656.0,0.000127,2]
[325204198,1714583437818,-626.11363579,0.0001274,2]
[325204199,1714583437928,-418.30959003,0.0001274,2]
[325204201,1714583437938,-150.0,0.00012801,2]
[325204203,1714583437947,-150.0,0.00012851,2]
[325204205,1714583437956,-1000.0,0.00012895,2]
[325204207,1714583437966,-500.0,0.00012895,2]
[325204209,1714583437975,-200.0,0.00012896,2]
[325204211,1714583437985,-1000.0,0.00012896,2]
[325204213,1714583437994,-1000.0,0.00012896,2]
[325204215,1714583438003,-200.0,0.00012896,2]
[325204217,1714583438013,-500.0,0.00012896,2]
[325204219,1714583438022,-500.0,0.00012896,2]
[325204221,1714583438031,-58847.35693463,0.00012898,2]
[325204223,1714583438040,-172.6980477,0.00012898,2]
[325204242,1714583438261,-197.72577535,0.00012898,2]
[325204243,1714583438278,-418.55493597,0.00012898,2]
[325204244,1714583438288,-421.96522044,0.000129,2]
[325204245,1714583438302,-288.63919032,0.000129,2]
[325204246,1714583438312,-1777.33405598,0.00012996,2]
[325204247,1714583438323,-255.48323707,0.00012996,2]
[325204248,1714583438333,-5466.96294396,0.00012996,2]
[325204249,1714583438344,-325.8442159,0.00012996,2]
[325204250,1714583438355,-685.70451048,0.00012996,2]
[325204251,1714583438366,-706.66913894,0.00012996,2]
[325204252,1714583438375,-157.55918025,0.00012996,2]
[325204253,1714583438386,-1265.99709831,0.00012996,2]
[325204254,1714583438396,-155.0,0.00012997,2]
[325204255,1714583438406,-4970.48340786,0.00012997,2]
[325204256,1714583438416,-7856.12166265,0.00012997,2]
[325204257,1714583438426,-968.0,0.00012998,2]
[325204258,1714583438435,-1174.1981,0.00012998,2]
[325204259,1714583438444,-155.13986935,0.00012998,2]
[325204260,1714583438454,-611967.37244609,0.00012998,2]
[325204261,1714583438466,-1703.41591,0.00012998,2]
[325204262,1714583438477,-419.93816865,0.00012998,2]
[325204263,1714583438488,-752.58460369,0.00012998,2]
[325204265,1714583439816,-2354.07593275,0.00012998,2]
[325204266,1714583439854,-89825.95851011,0.00012998,2]
[325204267,1714583439867,-124942.17844957,0.00012998,2]
[325204318,1714583443638,-1021.71644286,0.00012998,2]
[325204319,1714583443680,-831.02421482,0.00012998,2]
[325204320,1714583443692,-641.82514,0.00012998,2]
[325204321,1714583443865,-544.60367117,0.00012998,2]
[325204322,1714583443877,-1217.46,0.00012998,2]
[325204323,1714583443889,-40702.00411187,0.00012998,2]
[325204324,1714583443920,-365.0,0.00012998,2]
[325204325,1714583443945,-1089.39259448,0.00012998,2]
[325204326,1714583445615,-156.97179531,0.00012997,2]
[325204327,1714583445628,-2883.22820469,0.00012998,2]
[325204328,1714583447146,-982.33388643,0.00012998,2]
[325204329,1714583447283,-2239.17171049,0.00012998,2]
[325204330,1714583447301,-1343.36758848,0.00012998,2]
[325204346,1714583523106,527.47233212,0.00011695,2]
[325204347,1714583556076,31076.14787053,0.00011695,2]
[325204348,1714583623099,709.24,0.00011695,2]
[325204349,1714583706278,150.0,0.00010993,2]
[325204350,1714583712504,1705.29089149,0.00011596,2]
[325204351,1714583717859,1705.29089148,0.00011649,2]
[325204352,1714583753358,1391.64,0.00011629,2]
[325204353,1714583827890,568.43029716,0.00011596,2]
[325204354,1714583832835,568.43029716,0.00011649,2]
[325204355,1714583843109,200.0,0.00011636,2]
[325204356,1714583866563,214.68,0.00011511,2]
[325204358,1714583919172,-155.0,0.00011696,2]
[325204359,1714583919194,-194.95167956,0.00011696,2]
[325204360,1714583989927,840.0,0.00011616,2]
[325204361,1714584017212,5646.43572044,0.00011696,2]
[325204362,1714584017233,8834.52739572,0.00011696,2]
[325204363,1714584033224,9653.97541077,0.00011696,2]
[325204364,1714584051214,8044.97950898,0.00011696,2]
[325204365,1714584051341,568.43029716,0.0001163,2]
[325204366,1714584136196,200.0,0.00011694,2]
[325204367,1714584190420,469146.96884736,0.0001163,2]
[325204368,1714584355039,200.0,0.00011665,2]
[325204369,1714584499004,328.0,0.00011669,2]
[325204370,1714584575382,180.0,0.00011671,2]
[325204371,1714584630499,154.14,0.00011672,2]
[325204384,1714584631985,-306.0,0.00011727,2]
[325204385,1714584631995,-5262.93754759,0.00011761,2]
[325204386,1714584632004,-4191.43432418,0.00011762,2]
[325204387,1714584632013,-10304.4,0.00011764,2]
[325204388,1714584632022,-157.94,0.00011836,2]
[325204389,1714584632038,-157.94,0.00011873,2]
[325204390,1714584632047,-157.94,0.00011909,2]
[325204391,1714584632056,-157.94,0.00011945,2]
[325204392,1714584632065,-157.94,0.00011981,2]
[325204393,1714584632075,-157.94,0.00012018,2]
[325204394,1714584632084,-499.99,0.00012018,2]
[325204395,1714584632094,-150.99,0.00012018,2]
[325204396,1714584632104,-2736.58,0.00012036,2]
[325204397,1714584632113,-2501.61,0.00012036,2]
[325204398,1714584632123,-157.94,0.00012054,2]
[325204399,1714584632132,-157.94,0.0001209,2]
[325204400,1714584632142,-150.99,0.00012109,2]
[325204401,1714584632151,-157.94,0.00012126,2]
[325204402,1714584632160,-3107.67,0.00012146,2]
[325204403,1714584632169,-157.94,0.00012163,2]
[325204404,1714584632178,-157.94,0.00012199,2]
[325204405,1714584632187,-175.02,0.00012212,2]
[325204406,1714584632197,-157.94,0.00012235,2]
[325204407,1714584632206,-157.94,0.00012272,2]
[325204408,1714584632215,-157.94,0.00012308,2]
[325204409,1714584632225,-157.94,0.00012344,2]
[325204410,1714584632233,-157.94,0.0001238,2]
[325204411,1714584632242,-157.94,0.00012417,2]
[325204412,1714584632251,-157.94,0.00012453,2]
[325204413,1714584632260,-2417.52,0.00012644,2]
[325204414,1714584632270,-2417.52,0.00012647,2]
[325204415,1714584632280,-2417.52,0.00012651,2]
[325204416,1714584632289,-2417.52,0.00012654,2]
[325204417,1714584632299,-2417.52,0.00012657,2]
[325204418,1714584632307,-2417.52,0.00012661,2]
[325204419,1714584632316,-150.0,0.00012663,2]
[325204420,1714584632326,-2417.52,0.00012664,2]
[325204421,1714584632336,-150.0,0.00012664,2]
[325204422,1714584632346,-300.0,0.00012666,2]
[325204423,1714584632357,-2417.52,0.00012667,2]
[325204424,1714584632366,-150.0,0.00012669,2]
[325204425,1714584632375,-300.0,0.0001267,2]
[325204426,1714584632385,-2417.52,0.00012671,2]
[325204427,1714584632394,-2417.52,0.00012674,2]
[325204428,1714584632404,-150.0,0.00012675,2]
[325204429,1714584632413,-2417.52,0.00012677,2]
[325204430,1714584632422,-2417.52,0.00012681,2]
[325204431,1714584632432,-2417.52,0.00012684,2]
[325204432,1714584632441,-2417.52,0.00012687,2]
[325204433,1714584632451,-2417.52,0.0001269,2]
[325204434,1714584632461,-2417.52,0.00012694,2]
[325204435,1714584632470,-150.0,0.00012694,2]